[Event "10th Iberoamericano-ch 2024"]
[Site "Linares"]
[Date "2024.09.25"]
[Round "1.33"]
[White "Sos Andreu, Eric"]
[Black "Follana Albelda, Lucia"]
[Result "1-0"]
[ECO "A15"]
[WhiteElo "2359"]
[BlackElo "2043"]
[Annotator "RC"]
[PlyCount "79"]
[EventDate "2024.09.25"]
[EventType "swiss"]
[EventCountry "ESP"]
[SourceTitle "playchess.com"]
[Source "ChessBase"]
[SourceQuality "1"]
[TimeControl "5400+30"]

1. Nf3 {[%emt 0:00:06]} Nf6 {[%emt 0:00:58]} 2. c4 {[%emt 0:00:12]} b6 {[%emt 0:01:01]} 3. g3 {[%emt 0:01:08]} Bb7 {[%emt 0:00:12]} 4. Bg2 {[%emt 0:00:11]} e6 {[%emt 0:00:18]} 5. O-O {[%emt 0:00:38]} Be7 {[%emt 0:05:39]} 6. Nc3 {[%emt 0:00:31]} Ne4 {[%emt 0:02:53]} 7. Nxe4 {[%emt 0:01:40]} Bxe4 {[%emt 0:00:17]} 8. d3 {[%emt 0:00:52]} Bb7 {[%emt 0:02:23]} 9. e4 {[%emt 0:00:46]} d6 {[%emt 0:03:55]} 10. Re1 {[%emt 0:00:33]} e5 {[%emt 0:02:16]} 11. d4 {[%emt 0:02:26]} Nd7 {[%emt 0:05:23]} 12. b3 {[%emt 0:01:28]} O-O {[%emt 0:01:07]} 13. Bb2 {[%emt 0:02:19]} Bf6 {[%emt 0:10:45]} 14. Qd2 {[%emt 0:01:27]} a5 {[%emt 0:01:05]} 15. Rad1 {[%emt 0:05:48]} Re8 {[%emt 0:08:32]} 16. dxe5 {[%emt 0:04:06]} Nxe5 {[%emt 0:01:44]} 17. Nd4 {[%emt 0:00:13]} Qb8 {[%emt 0:04:59]} 18. f4 {[%emt 0:09:31]} Ng6 {[%emt 0:07:11]} 19. h4 {[%emt 0:10:28]} h6 {[%emt 0:01:54]} 20. Nf5 {[%emt 0:08:59]} Bxb2 {[%emt 0:03:06]} 21. Qxb2 {[%emt 0:00:05]} f6 {[%emt 0:00:16]} 22. Qe2 {[%emt 0:01:08]} Ne7 {[%emt 0:01:10]} 23. Nd4 {[%emt 0:01:40]} Nc6 {[%emt 0:04:29]} 24. Nb5 {[%emt 0:01:23]} a4 {[%emt 0:03:53]} 25. Qh5 {[%emt 0:02:46]} Re7 {[%emt 0:07:35]} 26. Nc3 {[%emt 0:03:44]} axb3 {[%emt 0:01:13]} 27. axb3 {[%emt 0:00:18]} Na5 {[%emt 0:01:58]} 28. Nd5 {[%emt 0:02:16]} Rf7 {[%emt 0:01:27]} 29. Rd3 {[%emt 0:04:26]} Qa7 {[%emt 0:06:18]} 30. Kh2 {[%emt 0:00:40]} Nc6 {[%emt 0:03:53]} 31. Re2 {[%emt 0:03:14]} Qa5 {[%emt 0:02:44]} 32. Rdd2 {[%emt 0:03:55]} Nb4 {[%emt 0:01:01]} 33. Qg6 {[%emt 0:00:18]} Bxd5 {[%emt 0:03:45]} 34. cxd5 {[%emt 0:02:38]} Qc5 {[%emt 0:01:06]} 35. Bh3 {[%emt 0:05:21]} Raf8 {[%emt 0:01:01]} 36. Be6 {[%emt 0:02:55]} Qc3 {[%emt 0:00:18]} 37. e5 {[%emt 0:00:46]} dxe5 {[%emt 0:00:33]} 38. fxe5 {[%emt 0:00:08]} Na6 {[%emt 0:00:38]} 39. Bf5 {[%emt 0:01:40]} Rd8 {[%emt 0:00:32]} 40. e6 {[%emt 0:00:10]} 1-0

[Event "10th Iberoamericano-ch 2024"]
[Site "Linares"]
[Date "2024.09.25"]
[Round "1.34"]
[White "Guillo Longares, Cecilia"]
[Black "Garcia Fernandez, Victor"]
[Result "0-1"]
[ECO "D37"]
[WhiteElo "2036"]
[BlackElo "2353"]
[Annotator "RC"]
[PlyCount "84"]
[EventDate "2024.09.25"]
[EventType "swiss"]
[EventCountry "ESP"]
[SourceTitle "playchess.com"]
[Source "ChessBase"]
[SourceQuality "1"]
[TimeControl "5400+30"]

1. d4 {[%emt 0:00:02]} Nf6 {[%emt 0:04:01]} 2. c4 {[%emt 0:00:11]} e6 {[%emt 0:00:08]} 3. Nf3 {[%emt 0:00:13]} d5 {[%emt 0:01:57]} 4. Nc3 {[%emt 0:00:13]} dxc4 {[%emt 0:00:37]} 5. e3 {[%emt 0:00:18]} a6 {[%emt 0:00:30]} 6. a4 {[%emt 0:00:49]} Bb4 {[%emt 0:04:08]} 7. Bxc4 {[%emt 0:01:39]} O-O {[%emt 0:02:22]} 8. O-O {[%emt 0:01:25]} b6 {[%emt 0:02:10]} 9. Qb3 {[%emt 0:08:35]} Qe7 {[%emt 0:02:23]} 10. Ne5 {[%emt 0:05:57]} Bb7 {[%emt 0:04:14]} 11. f4 {[%emt 0:03:51]} Nc6 {[%emt 0:08:37]} 12. Na2 {[%emt 0:06:53]} Bd6 {[%emt 0:12:49]} 13. Bd2 {[%emt 0:01:34]} Ne4 {[%emt 0:09:15]} 14. Be1 {[%emt 0:03:22]} Bxe5 {[%emt 0:13:41]} 15. dxe5 {[%emt 0:10:58]} Qc5 {[%emt 0:03:41]} 16. Rc1 {[%emt 0:06:23]} Na5 {[%emt 0:00:28]} 17. Qd3 {[%emt 0:08:17]} Nxc4 {[%emt 0:04:30]} 18. Rxc4 {[%emt 0:00:21]} Qd5 {[%emt 0:00:15]} 19. Qe2 {[%emt 0:03:20]} c5 {[%emt 0:08:07]} 20. b4 {[%emt 0:06:33]} b5 {[%emt 0:01:34]} 21. Rc1 {[%emt 0:00:33]} bxa4 {[%emt 0:03:30]} 22. bxc5 {[%emt 0:01:05]} a5 {[%emt 0:00:42]} 23. Rf3 {[%emt 0:09:10]} Nxc5 {[%emt 0:03:27]} 24. Rh3 {[%emt 0:01:12]} Rfd8 {[%emt 0:01:46]} 25. Qc2 {[%emt 0:07:11]} Nd3 {[%emt 0:01:31]} 26. Nc3 {[%emt 0:02:26]} Qb3 {[%emt 0:01:03]} 27. Bg3 {[%emt 0:03:39]} h6 {[%emt 0:00:49]} 28. Qxb3 {[%emt 0:00:43]} axb3 {[%emt 0:00:02]} 29. Rd1 {[%emt 0:00:38]} Rac8 {[%emt 0:00:25]} 30. Bh4 {[%emt 0:01:06]} Rd7 {[%emt 0:01:52]} 31. Na4 {[%emt 0:00:15]} Rc1 {[%emt 0:01:28]} 32. Rxc1 {[%emt 0:00:52]} Nxc1 {[%emt 0:00:02]} 33. e4 {[%emt 0:01:22]} Rd3 {[%emt 0:00:16]} 34. Be1 {[%emt 0:01:16]} Rxh3 {[%emt 0:02:49]} 35. gxh3 {[%emt 0:00:04]} Bc6 {[%emt 0:00:08]} 36. Nb2 {[%emt 0:01:01]} a4 {[%emt 0:00:06]} 37. Bb4 {[%emt 0:01:57]} Ne2+ {[%emt 0:02:54]} 38. Kf2 {[%emt 0:00:36]} Nd4 {[%emt 0:00:25]} 39. Nc4 {[%emt 0:03:09]} Nc2 {[%emt 0:00:14]} 40. Bc5 {[%emt 0:00:43]} Bb5 {[%emt 0:00:25]} 41. Na3 {[%emt 0:00:28]} b2 {[%emt 0:00:09]} 42. Nb1 {[%emt 0:00:08]} Bd3 {[%emt 0:00:16]} 0-1

[Event "10th Iberoamericano-ch 2024"]
[Site "Linares"]
[Date "2024.09.25"]
[Round "1.35"]
[White "Jimenez Garcia, Emmanuel"]
[Black "Garcia Paolicchi, Raul"]
[Result "1-0"]
[ECO "A07"]
[WhiteElo "2352"]
[BlackElo "2034"]
[Annotator "RC"]
[PlyCount "69"]
[EventDate "2024.09.25"]
[EventType "swiss"]
[EventCountry "ESP"]
[SourceTitle "playchess.com"]
[Source "ChessBase"]
[SourceQuality "1"]
[TimeControl "5400+30"]

1. Nf3 {[%emt 0:00:44]} d5 {[%emt 0:00:09]} 2. g3 {[%emt 0:00:23]} Bg4 {[%emt 0:00:33]} 3. Bg2 {[%emt 0:00:06]} c6 {[%emt 0:00:19]} 4. c4 {[%emt 0:00:57]} e6 {[%emt 0:01:33]} 5. Qb3 {[%emt 0:08:15]} Qb6 {[%emt 0:02:49]} 6. d4 {[%emt 0:01:46]} Nd7 {[%emt 0:06:14]} 7. Nc3 {[%emt 0:03:28]} Ngf6 {[%emt 0:03:21]} 8. h3 {[%emt 0:05:43]} Bh5 {[%emt 0:04:27]} 9. O-O {[%emt 0:06:07]} Be7 {[%emt 0:05:14]} 10. c5 {[%emt 0:01:17]} Qa6 {[%emt 0:02:25]} 11. g4 {[%emt 0:03:14]} Bg6 {[%emt 0:01:07]} 12. Nh4 {[%emt 0:01:21]} O-O {[%emt 0:04:35]} 13. Nxg6 {[%emt 0:01:16]} hxg6 {[%emt 0:00:04]} 14. Bf4 {[%emt 0:01:19]} b6 {[%emt 0:03:11]} 15. cxb6 {[%emt 0:00:24]} axb6 {[%emt 0:00:26]} 16. e4 {[%emt 0:04:03]} dxe4 {[%emt 0:02:15]} 17. Nxe4 {[%emt 0:01:04]} Nd5 {[%emt 0:00:52]} 18. Bh2 {[%emt 0:00:27]} N7f6 {[%emt 0:02:21]} 19. Nd2 {[%emt 0:05:58]} Rac8 {[%emt 0:10:09]} 20. Qc4 {[%emt 0:14:40]} Qa7 {[%emt 0:02:52]} 21. Nf3 {[%emt 0:05:48]} Nd7 {[%emt 0:02:47]} 22. Rfc1 {[%emt 0:01:33]} Rfd8 {[%emt 0:05:15]} 23. Bf1 {[%emt 0:05:07]} b5 {[%emt 0:12:23]} 24. Qb3 {[%emt 0:02:14]} Qb6 {[%emt 0:08:05]} 25. a4 {[%emt 0:06:29]} b4 {[%emt 0:03:40]} 26. a5 {[%emt 0:01:22]} Qa7 {[%emt 0:00:21]} 27. Qc4 {[%emt 0:02:43]} Nb8 {[%emt 0:02:44]} 28. a6 {[%emt 0:09:56]} Bd6 {[%emt 0:02:33]} 29. Bxd6 {[%emt 0:00:38]} Rxd6 {[%emt 0:00:05]} 30. Ne5 {[%emt 0:01:15]} Nd7 {[%emt 0:05:27]} 31. Bg2 {[%emt 0:00:53]} Qb6 {[%emt 0:03:39]} 32. a7 {[%emt 0:01:44]} Ra8 {[%emt 0:00:04]} 33. Nxc6 {[%emt 0:00:49]} N7f6 {[%emt 0:00:37]} 34. Ne7+ {[%emt 0:00:45]} Kh7 {[%emt 0:00:46]} 35. Nc8 {[%emt 0:00:21]} 1-0

[Event "10th Iberoamericano-ch 2024"]
[Site "Linares"]
[Date "2024.09.25"]
[Round "1.36"]
[White "Zapata Campos, Lidia Karen"]
[Black "Marin Ferragut, Pau"]
[Result "0-1"]
[ECO "B12"]
[WhiteElo "2029"]
[BlackElo "2348"]
[Annotator "RC"]
[PlyCount "56"]
[EventDate "2024.09.25"]
[EventType "swiss"]
[EventCountry "ESP"]
[SourceTitle "playchess.com"]
[Source "ChessBase"]
[SourceQuality "1"]
[TimeControl "5400+30"]

1. e4 {[%emt 0:00:09]} c6 {[%emt 0:00:34]} 2. d4 {[%emt 0:00:28]} d5 {[%emt 0:00:14]} 3. e5 c5 {[%emt 0:00:37]} 4. c3 {[%emt 0:00:18]} Nc6 {[%emt 0:00:29]} 5. Nf3 {[%emt 0:02:05]} cxd4 {[%emt 0:01:05]} 6. cxd4 Bg4 {[%emt 0:00:07]} 7. Be2 {[%emt 0:04:07]} e6 {[%emt 0:02:14]} 8. Be3 {[%emt 0:00:45]} Nge7 {[%emt 0:00:35]} 9. Nbd2 {[%emt 0:01:39]} Nf5 {[%emt 0:01:10]} 10. O-O {[%emt 0:01:55]} Be7 {[%emt 0:02:00]} 11. a3 {[%emt 0:02:31]} O-O {[%emt 0:02:44]} 12. b4 {[%emt 0:00:39]} a5 {[%emt 0:04:29]} 13. b5 {[%emt 0:00:30]} Nb8 {[%emt 0:01:24]} 14. a4 {[%emt 0:09:30]} Nd7 {[%emt 0:06:53]} 15. Nb3 {[%emt 0:00:30]} Nb6 {[%emt 0:01:30]} 16. Nc5 {[%emt 0:02:10]} Bxf3 {[%emt 0:00:30]} 17. Bxf3 {[%emt 0:05:15]} Bxc5 {[%emt 0:00:25]} 18. dxc5 {[%emt 0:00:12]} Nxe3 {[%emt 0:00:06]} 19. fxe3 {[%emt 0:00:26]} Nd7 {[%emt 0:17:25]} 20. e4 {[%emt 0:04:53]} dxe4 {[%emt 0:00:01]} 21. Bxe4 {[%emt 0:00:30]} Nxc5 {[%emt 0:00:30]} 22. Bxh7+ {[%emt 0:00:30]} Kxh7 {[%emt 0:00:30]} 23. Qc2+ {[%emt 0:13:19]} Nd3 {[%emt 0:00:00]} 24. Rad1 {[%emt 0:00:48]} Qd4+ {[%emt 0:00:00]} 25. Kh1 {[%emt 0:00:09]} Rfd8 {[%emt 0:01:08]} 26. Rf3 {[%emt 0:00:10]} Rac8 {[%emt 0:00:44]} 27. Qb1 {[%emt 0:10:28]} Rc3 {[%emt 0:02:20]} 28. Rxf7 {[%emt 0:00:44]} Rb3 {[%emt 0:01:57]} 0-1

[Event "10th Iberoamericano-ch 2024"]
[Site "Linares"]
[Date "2024.09.25"]
[Round "1.37"]
[White "Vitier Vazquez, Cristian"]
[Black "Perez Ruiz, Santiago"]
[Result "1-0"]
[ECO "E12"]
[WhiteElo "2344"]
[BlackElo "2025"]
[Annotator "RC"]
[PlyCount "66"]
[EventDate "2024.09.25"]
[EventType "swiss"]
[EventCountry "ESP"]
[SourceTitle "playchess.com"]
[Source "ChessBase"]
[SourceQuality "1"]
[TimeControl "5400+30"]

1. Nf3 {[%emt 0:00:39]} Nf6 {[%emt 0:00:32]} 2. c4 {[%emt 0:00:34]} e6 {[%emt 0:00:53]} 3. d4 {[%emt 0:02:27]} b6 {[%emt 0:04:05]} 4. a3 {[%emt 0:01:14]} Bb7 {[%emt 0:03:12]} 5. Nc3 {[%emt 0:00:11]} Be7 {[%emt 0:01:37]} 6. d5 {[%emt 0:02:07]} O-O {[%emt 0:04:21]} 7. e4 {[%emt 0:01:36]} d6 {[%emt 0:03:34]} 8. Be2 {[%emt 0:12:18]} Nbd7 {[%emt 0:06:10]} 9. Nd4 {[%emt 0:18:10]} exd5 {[%emt 0:08:52]} 10. cxd5 {[%emt 0:01:24]} Nc5 {[%emt 0:01:02]} 11. f3 {[%emt 0:04:30]} a5 {[%emt 0:05:16]} 12. O-O {[%emt 0:00:51]} Re8 {[%emt 0:01:24]} 13. Bb5 {[%emt 0:02:43]} Nfd7 {[%emt 0:02:00]} 14. Be3 {[%emt 0:08:44]} Bg5 {[%emt 0:07:35]} 15. Bf2 {[%emt 0:00:35]} Ba6 {[%emt 0:15:25]} 16. b4 {[%emt 0:06:20]} Bxb5 {[%emt 0:01:29]} 17. Ncxb5 {[%emt 0:00:38]} axb4 {[%emt 0:00:44]} 18. Nc6 {[%emt 0:00:37]} Qc8 {[%emt 0:02:31]} 19. Nba7 {[%emt 0:07:24]} Qb7 {[%emt 0:06:24]} 20. axb4 {[%emt 0:00:07]} Na6 {[%emt 0:01:35]} 21. Qa4 {[%emt 0:10:56]} Nab8 {[%emt 0:02:46]} 22. Qb5 {[%emt 0:00:15]} Rf8 {[%emt 0:01:02]} 23. Bd4 {[%emt 0:08:27]} Bf6 {[%emt 0:05:28]} 24. Qc4 {[%emt 0:01:53]} Ne5 {[%emt 0:05:10]} 25. Bxe5 {[%emt 0:00:26]} dxe5 {[%emt 0:01:24]} 26. Nxb8 {[%emt 0:01:20]} Rfxb8 {[%emt 0:01:19]} 27. Nb5 {[%emt 0:00:25]} Bd8 {[%emt 0:02:14]} 28. Rxa8 {[%emt 0:02:34]} Rxa8 {[%emt 0:00:26]} 29. Rc1 {[%emt 0:00:12]} Rc8 {[%emt 0:00:45]} 30. Nd6 {[%emt 0:01:53]} Qa8 {[%emt 0:02:22]} 31. Nxc8 {[%emt 0:00:17]} Qxc8 {[%emt 0:00:07]} 32. Qc6 {[%emt 0:00:46]} Be7 {[%emt 0:02:49]} 33. d6 {[%emt 0:00:48]} Bf8 1-0

[Event "10th Iberoamericano-ch 2024"]
[Site "Linares"]
[Date "2024.09.25"]
[Round "1.38"]
[White "Santos, Tomas Afonso Pires"]
[Black "Teran Alvarez, Ismael"]
[Result "1/2-1/2"]
[ECO "C11"]
[WhiteElo "2012"]
[BlackElo "2329"]
[Annotator "RC"]
[PlyCount "102"]
[EventDate "2024.09.25"]
[EventType "swiss"]
[EventCountry "ESP"]
[SourceTitle "playchess.com"]
[Source "ChessBase"]
[SourceQuality "1"]
[TimeControl "5400+30"]

1. e4 {[%emt 0:05:35]} e6 {[%emt 0:00:26]} 2. d4 {[%emt 0:00:06]} d5 {[%emt 0:00:08]} 3. Nc3 {[%emt 0:00:07]} Nf6 {[%emt 0:00:29]} 4. Bg5 {[%emt 0:00:18]} dxe4 {[%emt 0:02:26]} 5. Nxe4 {[%emt 0:00:15]} Be7 {[%emt 0:00:42]} 6. Nxf6+ {[%emt 0:01:38]} Bxf6 {[%emt 0:00:19]} 7. Bxf6 {[%emt 0:01:04]} Qxf6 {[%emt 0:00:08]} 8. Nf3 {[%emt 0:01:33]} O-O {[%emt 0:03:43]} 9. Bd3 {[%emt 0:04:48]} c5 {[%emt 0:03:54]} 10. O-O {[%emt 0:07:26]} cxd4 {[%emt 0:22:24]} 11. Nxd4 {[%emt 0:09:03]} Rd8 {[%emt 0:02:18]} 12. Nf3 {[%emt 0:03:38]} Na6 {[%emt 0:05:20]} 13. Qe2 {[%emt 0:12:19]} Nc5 {[%emt 0:09:34]} 14. Rad1 {[%emt 0:06:21]} b6 {[%emt 0:03:19]} 15. c3 {[%emt 0:17:48]} Bb7 {[%emt 0:01:49]} 16. Bc2 {[%emt 0:04:49]} Bxf3 {[%emt 0:01:31]} 17. Qxf3 {[%emt 0:00:16]} Qxf3 {[%emt 0:00:07]} 18. gxf3 {[%emt 0:00:04]} Kf8 {[%emt 0:07:38]} 19. Rfe1 {[%emt 0:01:25]} Ke7 {[%emt 0:06:15]} 20. Kf1 {[%emt 0:00:11]} Rac8 {[%emt 0:07:39]} 21. Ke2 {[%emt 0:01:16]} Rxd1 {[%emt 0:00:14]} 22. Rxd1 {[%emt 0:00:39]} Nd7 {[%emt 0:00:43]} 23. f4 {[%emt 0:03:14]} Rc5 {[%emt 0:02:46]} 24. Kf3 {[%emt 0:00:45]} g6 {[%emt 0:02:54]} 25. Rd3 {[%emt 0:03:15]} Nf6 {[%emt 0:00:44]} 26. Rd4 {[%emt 0:05:02]} Rh5 {[%emt 0:09:31]} 27. Kg3 {[%emt 0:00:20]} Rb5 {[%emt 0:00:43]} 28. Bb3 {[%emt 0:00:49]} h6 {[%emt 0:01:11]} 29. Kf3 {[%emt 0:00:41]} Rh5 {[%emt 0:00:35]} 30. Kg3 {[%emt 0:00:13]} Rc5 {[%emt 0:00:21]} 31. Kf3 {[%emt 0:00:12]} Ne8 {[%emt 0:01:44]} 32. Ra4 {[%emt 0:03:46]} a5 {[%emt 0:01:10]} 33. Rc4 {[%emt 0:00:59]} Kd6 {[%emt 0:02:49]} 34. Rxc5 {[%emt 0:01:16]} Kxc5 {[%emt 0:00:07]} 35. Ke4 {[%emt 0:00:17]} Nf6+ {[%emt 0:00:31]} 36. Kf3 {[%emt 0:00:20]} Kd6 {[%emt 0:01:39]} 37. Ba4 {[%emt 0:00:56]} Nd5 {[%emt 0:00:20]} 38. Be8 {[%emt 0:00:59]} Ke7 {[%emt 0:00:03]} 39. Bc6 {[%emt 0:00:17]} Nf6 {[%emt 0:00:02]} 40. Bb5 {[%emt 0:02:02]} Kd6 {[%emt 0:00:01]} 41. Ba4 {[%emt 0:00:32]} Kd5 {[%emt 0:00:31]} 42. Bb3+ {[%emt 0:00:21]} Kc5 {[%emt 0:00:05]} 43. Bd1 {[%emt 0:00:04]} Nd7 {[%emt 0:01:20]} 44. Bb3 {[%emt 0:00:56]} b5 {[%emt 0:01:01]} 45. Ke3 {[%emt 0:00:36]} Nb6 {[%emt 0:00:30]} 46. Ke4 {[%emt 0:00:27]} Nd7 {[%emt 0:00:25]} 47. Bd1 {[%emt 0:00:19]} Nf6+ {[%emt 0:00:59]} 48. Ke5 {[%emt 0:00:48]} Nd7+ {[%emt 0:00:01]} 49. Ke4 {[%emt 0:00:06]} f5+ {[%emt 0:00:58]} 50. Ke3 {[%emt 0:00:13]} e5 {[%emt 0:00:45]} 51. Bb3 {[%emt 0:00:38]} Kd6 {[%emt 0:00:25]} 1/2-1/2

[Event "10th Iberoamericano-ch 2024"]
[Site "Linares"]
[Date "2024.09.25"]
[Round "1.39"]
[White "Domingo Nunez, Alejandro"]
[Black "Arroyo Rodriguez, Jesus"]
[Result "1-0"]
[ECO "A09"]
[WhiteElo "2328"]
[BlackElo "2006"]
[Annotator "RC"]
[PlyCount "37"]
[EventDate "2024.09.25"]
[EventType "swiss"]
[EventCountry "ESP"]
[SourceTitle "playchess.com"]
[Source "ChessBase"]
[SourceQuality "1"]
[TimeControl "5400+30"]

1. Nf3 {[%emt 0:00:05]} d5 {[%emt 0:04:51]} 2. c4 {[%emt 0:00:05]} c6 {[%emt 0:01:02]} 3. g3 {[%emt 0:00:24]} Nf6 {[%emt 0:01:14]} 4. Bg2 {[%emt 0:00:06]} Bg4 {[%emt 0:00:34]} 5. O-O {[%emt 0:00:36]} Nbd7 {[%emt 0:00:44]} 6. cxd5 {[%emt 0:00:13]} cxd5 {[%emt 0:01:41]} 7. Nc3 {[%emt 0:00:04]} e6 {[%emt 0:00:36]} 8. Qb3 {[%emt 0:09:19]} b6 {[%emt 0:13:09]} 9. d4 {[%emt 0:27:13]} Bd6 {[%emt 0:03:47]} 10. Nb5 {[%emt 0:01:08]} Bb8 {[%emt 0:01:30]} 11. Qa3 {[%emt 0:11:37]} Qe7 {[%emt 0:06:37]} 12. Qc3 {[%emt 0:01:05]} O-O {[%emt 0:08:53]} 13. Qc6 {[%emt 0:00:20]} a6 {[%emt 0:02:30]} 14. Qxa8 {[%emt 0:00:41]} axb5 {[%emt 0:00:09]} 15. Qc6 {[%emt 0:01:00]} b4 {[%emt 0:00:49]} 16. Bg5 {[%emt 0:03:48]} Rd8 {[%emt 0:01:19]} 17. Rfc1 {[%emt 0:01:37]} h6 {[%emt 0:00:13]} 18. Bxf6 {[%emt 0:03:24]} Qxf6 {[%emt 0:00:16]} 19. Qb7 {[%emt 0:00:23]} 1-0

[Event "10th Iberoamericano-ch 2024"]
[Site "Linares"]
[Date "2024.09.25"]
[Round "1.40"]
[White "Lobo Pereira, Arami"]
[Black "Ticona Rocabado, Licael Roderick"]
[Result "0-1"]
[ECO "D31"]
[WhiteElo "2006"]
[BlackElo "2321"]
[Annotator "RC"]
[PlyCount "82"]
[EventDate "2024.09.25"]
[EventType "swiss"]
[EventCountry "ESP"]
[SourceTitle "playchess.com"]
[Source "ChessBase"]
[SourceQuality "1"]
[TimeControl "5400+30"]

1. d4 {[%emt 0:02:01]} d5 {[%emt 0:05:22]} 2. c4 {[%emt 0:00:30]} e6 {[%emt 0:00:30]} 3. Nc3 {[%emt 0:00:30]} c6 {[%emt 0:00:30]} 4. e4 {[%emt 0:00:30]} dxe4 {[%emt 0:00:30]} 5. Nxe4 {[%emt 0:00:30]} Bb4+ {[%emt 0:00:30]} 6. Bd2 {[%emt 0:00:30]} Qxd4 {[%emt 0:00:30]} 7. Bxb4 {[%emt 0:00:30]} Qxe4+ {[%emt 0:00:33]} 8. Be2 {[%emt 0:00:00]} Na6 {[%emt 0:01:12]} 9. Bd6 {[%emt 0:00:00]} e5 {[%emt 0:04:24]} 10. Nf3 {[%emt 0:07:47]} Be6 {[%emt 0:07:59]} 11. O-O {[%emt 0:45:08]} Rd8 {[%emt 0:00:16]} 12. Bd3 {[%emt 0:00:30]} Qg4 {[%emt 0:00:30]} 13. h3 {[%emt 0:00:43]} Qh5 {[%emt 0:06:06]} 14. Bxe5 {[%emt 0:04:36]} Ne7 {[%emt 0:01:32]} 15. Qe2 {[%emt 0:00:30]} O-O {[%emt 0:00:28]} 16. a3 {[%emt 0:01:02]} Ng6 {[%emt 0:02:12]} 17. Bg3 {[%emt 0:02:33]} Rfe8 {[%emt 0:01:25]} 18. Rfe1 {[%emt 0:06:06]} Re7 {[%emt 0:01:09]} 19. Bxg6 {[%emt 0:01:27]} Qxg6 {[%emt 0:02:25]} 20. Rad1 {[%emt 0:00:30]} Rxd1 {[%emt 0:00:30]} 21. Rxd1 {[%emt 0:00:01]} Re8 {[%emt 0:00:02]} 22. b4 {[%emt 0:00:19]} f6 23. Qe3 {[%emt 0:06:41]} Bxc4 {[%emt 0:04:23]} 24. Qxa7 {[%emt 0:00:47]} Qf7 {[%emt 0:00:45]} 25. Qd4 {[%emt 0:04:50]} Bd5 {[%emt 0:02:07]} 26. Nd2 {[%emt 0:00:30]} Nc7 {[%emt 0:01:48]} 27. Nf1 {[%emt 0:01:34]} Ne6 {[%emt 0:01:36]} 28. Qd3 {[%emt 0:00:31]} f5 {[%emt 0:00:30]} 29. Be5 {[%emt 0:00:30]} Ng5 {[%emt 0:00:30]} 30. Qd4 {[%emt 0:05:02]} Qh5 {[%emt 0:05:10]} 31. Rd3 {[%emt 0:05:49]} Ne6 {[%emt 0:05:10]} 32. Qe3 {[%emt 0:02:29]} g5 {[%emt 0:00:24]} 33. b5 {[%emt 0:01:27]} f4 {[%emt 0:04:43]} 34. Qd2 {[%emt 0:00:27]} Qg6 {[%emt 0:00:30]} 35. bxc6 {[%emt 0:00:08]} Bxc6 {[%emt 0:00:14]} 36. Bb2 {[%emt 0:00:57]} f3 {[%emt 0:00:30]} 37. g3 {[%emt 0:00:29]} Bb5 {[%emt 0:04:21]} 38. Rxf3 {[%emt 0:00:34]} Qb1 {[%emt 0:00:22]} 39. Qc1 {[%emt 0:00:01]} Qxc1 {[%emt 0:00:30]} 40. Bxc1 {[%emt 0:00:43]} Nd4 {[%emt 0:00:00]} 41. Re3 {[%emt 0:00:30]} Ne2+ {[%emt 0:00:15]} 0-1